Cogmind - Beta 9.6 @@@ ROGUE MODE // 2020.08.13 @ 01:44:53 Player: MTF Result: Escaped! Performance ------------- Evolutions (9) 4500 Regions Visited (26) 5200 Robots Destroyed (324) 1620 Value Destroyed (14518) 14518 Prototype IDs (62) 1240 Alien Tech Used (1) 200 Bonus (12760) 12760 TOTAL SCORE: 40038 Bonus ------- High Alert Combat Kills 4404 Follower Combat Kills 2745 Network Hubs Disabled 600 Met Data Miner 300 Met Imprinter 300 Destroyed Z-Imprinter 1000 Exposed GOLEM Chamber 500 Built Enhanced Grunts 300 A7 Reached Mainframe 300 Met R17 at Cetus 500 Win 3000 Friendly Fire -1189 Cogmind --------- Core Integrity 1519/1600 Matter 285/300 Energy 481/2100 System Corruption 6% Temperature Cool (1) Movement Walking (156) Ox1 Location To Epsilon Eridani Parts ------- > --- POWER (2) -------- (None) > --- PROPULSION (3) --- Enhanced Biometal Leg Assembled Alloy Leg Assembled Alloy Leg > --- UTILITY (18) ----- Power Amplifier Large Storage Unit High-capacity Storage Unit High-capacity Storage Unit Zionite Biocell Zionite Biocell Advanced Targeting Computer Advanced Target Analyzer Experimental Armor Integrity Analyzer Advanced Transmission Jammer Improved Heavy Armor Plating Improved Heavy Armor Plating Centrium Medium Armor Plating EM Dispersion Field Advanced Force Field > --- WEAPON (3) ------- Helical Railgun > --- INVENTORY (26) --- Quantum Reactor Quantum Reactor Quantum Reactor Biometal Medium Treads Myomer Leg Centrium Leg Centrium Leg Zionite Metafield Generator Advanced Hacking Suite Mobile Refinery Mk. CCLXVII Advanced Variable Charge Gun Proton Burst Cannon Proton Burst Cannon Proton Burst Cannon Improved KE Penetrator Mini Smartbomb Launcher Tiamat Missile Launcher Tiamat Missile Launcher Power Sword Peak State ------------ > --- POWER ------------ Assembled Flux Generator > --- PROPULSION ------- Enhanced Biometal Leg Assembled Alloy Leg Assembled Alloy Leg > --- UTILITY ---------- Power Amplifier Large Storage Unit High-capacity Storage Unit High-capacity Storage Unit Zionite Biocell Assembled Biocell Array Advanced Targeting Computer Experimental Armor Integrity Analyzer Advanced Particle Charger Advanced Transmission Jammer Experimental Phase Shifter Improved Medium Armor Plating Improved Heavy Armor Plating Centrium Medium Armor Plating Assembled Alloy Armor EM Dispersion Field Advanced Force Field > --- WEAPON ----------- EMDS Assembled Focal Cannon > --- INVENTORY -------- Quantum Reactor Quantum Reactor Quantum Reactor Biometal Medium Treads Myomer Leg Centrium Leg Zionite Biocell Zionite Biocell Zionite Metafield Generator Improved Heavy Armor Plating Advanced Hacking Suite Mobile Refinery Mk. CCLXVII Advanced Variable Charge Gun Proton Burst Cannon Proton Burst Cannon Proton Burst Cannon Improved KE Penetrator Helical Railgun Mini Smartbomb Launcher Tiamat Missile Launcher Tiamat Missile Launcher Power Sword [Rating: 198] Favorites ----------- Power Assembled Flux Generator Engine Light Ion Engine Power Core Micro Nuclear Core Reactor Assembled Flux Generator Propulsion Armored Treads Treads Armored Treads Leg Assembled Alloy Leg Hover Unit Zionite Glidesys II Flight Unit Cooled VTOL Module Utility High-capacity Storage Unit Device Improved Sensor Array Storage High-capacity Storage Unit Processor Advanced Targeting Computer Hackware Hacking Suite Protection Centrium Medium Armor Plating Weapon Assembled Focal Cannon Energy Gun Medium Laser Energy Cannon Assembled Focal Cannon Ballistic Gun Autogun Ballistic Cannon Gauss Cannon Launcher Mini Smartbomb Launcher Slashing Weapon Power Sword Build | -11 -10 -10 -10 -9 -8 -7 -7 -7 -7 -6 -6 -6 -6 -6 -6 -5 -5 -5 -5 -5 -5 -4 -3 -2 -1 -1 ------- Run | Scr Mat Min Exi Min Mat Fac Low Low Dat Pro Fac Low Low Zio Dee Pro Fac Ext Cet Arc Hub Fac Res Res Acc Com Slots Evolved 18 | . . . . . 4 2 . . . . 2 . . . . . 2 . . . . 2 2 2 2 . Power 1 | . . . . . . . . . . . . . . . . . 1 . . . . . . . . . Propulsion 1 | . . . . . 1 . . . . . . . . . . . . . . . . . . . . . Utility 15 | . . . . . 3 2 . . . . 2 . . . . . 1 . . . . 1 2 2 2 . Weapon 1 | . . . . . . . . . . . . . . . . . . . . . . 1 . . . . Parts Attached 355 | 7 4 1 2 11 36 36 11 5 . 2 27 13 6 25 40 8 2 12 4 1 30 5 8 30 5 24 Power 15 | 1 . 1 . 2 2 1 . . . . 1 1 . 2 2 . . . . . 2 . . . . . Engine 7 | 1 . 1 . 2 2 1 . . . . . . . . . . . . . . . . . . . . Core 6 | . . . . . . . . . . . 1 1 . 2 1 . . . . . 1 . . . . . Reactor 2 | . . . . . . . . . . . . . . . 1 . . . . . 1 . . . . . Propulsion 40 | 2 . . . 2 8 9 . . . . 2 1 1 3 7 . . . . . 4 . 1 . . . Treads 29 | 2 . . . 2 8 7 . . . . 2 1 1 3 3 . . . . . . . . . . . Leg 7 | . . . . . . . . . . . . . . . 2 . . . . . 4 . 1 . . . Wheel . | . . . . . . . . . . . . . . . . . . . . . . . . . . . Hover 3 | . . . . . . 1 . . . . . . . . 2 . . . . . . . . . . . Flight 1 | . . . . . . 1 . . . . . . . . . . . . . . . . . . . . Utility 163 | 2 2 . 2 . 7 7 5 1 . . 12 5 4 17 16 7 2 11 4 1 15 4 5 18 3 13 Device 71 | . . . . . 2 . 2 1 . . 5 3 3 6 3 2 1 4 2 1 13 1 2 12 3 5 Storage 28 | 2 2 . 2 . 1 . . . . . 1 . . 5 4 1 . 1 1 . 1 1 1 1 . 4 Processor 16 | . . . . . 1 3 1 . . . 3 . . 5 . 1 . . . . . . 1 . . 1 Hackware 1 | . . . . . . . . . . . 1 . . . . . . . . . . . . . . . Protection 47 | . . . . . 3 4 2 . . . 2 2 1 1 9 3 1 6 1 . 1 2 1 5 . 3 Artifact . | . . . . . . . . . . . . . . . . . . . . . . . . . . . Weapon 137 | 2 2 . . 7 19 19 6 4 . 2 12 6 1 3 15 1 . 1 . . 9 1 2 12 2 11 Energy Gun 9 | 1 . . . . . . . . . . 1 . . 1 3 . . . . . . . . . . 3 Energy Cannon 43 | . . . . 2 8 4 2 2 . . 6 2 . 1 4 . . . . . 2 1 1 5 1 2 Ballistic Gun 30 | 1 2 . . 4 1 3 1 . . 1 . 2 . . 4 . . . . . 3 . . 4 . 4 Ballistic Cannon 8 | . . . . . 3 4 . . . 1 . . . . . . . . . . . . . . . . Launcher 27 | . . . . 1 7 4 1 . . . . 1 . . 2 1 . 1 . . 4 . 1 3 1 . Special Weapon . | . . . . . . . . . . . . . . . . . . . . . . . . . . . Impact Weapon . | . . . . . . . . . . . . . . . . . . . . . . . . . . . Slashing Weapon 20 | . . . . . . 4 2 2 . . 5 1 1 1 2 . . . . . . . . . . 2 Piercing Weapon . | . . . . . . . . . . . . . . . . . . . . . . . . . . . Special Melee Weapon . | . . . . . . . . . . . . . . . . . . . . . . . . . . . Unidentified Prototypes 35 | . . . . . 2 3 . . . . . . 1 4 13 . . . 3 . 6 1 . 2 . . Parts Lost 39 | . . . . 1 7 3 . . . . 2 . . . 2 1 . . . . 9 . 2 2 1 9 Power 3 | . . . . 1 . . . . . . . . . . . . . . . . 1 . . . . 1 Propulsion 9 | . . . . . 3 1 . . . . 1 . . . 2 . . . . . 1 . 1 . . . Utility 19 | . . . . . 1 1 . . . . 1 . . . . 1 . . . . 5 . 1 2 1 6 Weapon 8 | . . . . . 3 1 . . . . . . . . . . . . . . 2 . . . . 2 Highest Loss Streak 5 | . . . . 1 5 2 . . . . 1 . . . 2 1 . . . . 5 . 2 1 1 4 Average Slot Usage (%) 93 | . 99 100 100 99 95 99 100 100 93 99 99 100 100 90 91 92 88 87 87 82 89 88 89 89 85 81 Engine 3 | . 14 14 14 14 9 7 7 7 7 7 2 . . . . . . . . . . . . . . . Core 1 | . . . . . . . . . . . 3 6 6 5 1 6 . . . . 1 1 . . . . Reactor 1 | . . . . . . . . . . . . . . . 4 . 4 5 5 4 5 5 4 4 3 2 Treads 14 | . 28 28 28 28 23 22 23 23 23 23 19 20 19 16 10 . . . . . . . . . . . Leg 5 | . . . . . . . . . . . . . . . 6 18 16 16 16 16 15 15 13 12 11 11 Device 6 | . . . . . 7 . 5 6 7 7 6 11 19 6 2 9 11 7 10 11 11 17 12 14 20 14 Storage 21 | . 28 28 28 28 23 23 23 23 23 23 20 20 19 18 17 18 16 17 22 22 22 20 18 20 19 21 Processor 16 | . . . . . 1 18 23 23 23 23 22 20 19 30 27 25 22 21 16 16 14 10 13 11 7 9 Protection 5 | . . . . . 12 11 1 . . . 7 7 2 . 6 2 5 7 5 5 5 6 17 16 15 12 Energy Cannon 6 | . . . . 1 13 5 3 3 . . 5 8 6 5 7 11 11 10 11 6 9 8 9 7 6 3 Ballistic Gun 4 | . 20 28 28 22 1 3 . . . 6 1 . . . . . . . . . 1 3 . . . 1 Ballistic Cannon 1 | . . . . . 1 4 7 7 1 6 1 . . . . . . . . . . . . . . . Slashing Weapon 1 | . . . . . . 1 3 3 7 . 1 3 2 6 . . . . . . . . . . . . Naked Turns . | . . . . . . . . . . . . . . . . . . . . . . . . . . . Heaviest Build 228 | 14 41 41 73 78 123 125 122 122 114 118 128 131 125 148 134 110 149 163 163 164 164 175 186 214 217 228 Greatest Support 98 | 40 40 40 40 40 60 76 60 60 60 60 70 70 76 76 84 84 84 84 84 84 88 98 90 90 90 90 Greatest Overweight (x) 4 | . 1 1 1 1 2 4 2 2 1 1 3 1 1 1 3 1 1 1 1 1 2 2 2 2 2 2 Average Overweight (x) 1 | . . 1 1 1 1 1 1 1 1 1 1 1 1 . 1 1 1 1 1 1 1 1 2 2 2 1 Largest Inventory Capacity 36 | 8 16 16 20 20 28 28 28 28 28 28 28 28 28 36 28 20 20 26 26 26 26 26 26 26 26 26 Average Capacity 24 | 6 13 16 16 20 24 28 28 28 28 28 28 28 28 28 22 20 20 21 26 26 26 26 26 26 26 26 Most Carried 36 | 5 15 16 19 20 28 28 28 27 28 28 28 28 28 36 28 19 20 21 26 26 26 26 24 26 26 26 Average Carried 22 | 3 11 15 15 18 22 27 27 27 27 28 27 27 27 27 21 18 19 20 25 26 24 25 20 23 23 20 Final Capacity 28 | 8 16 16 20 20 28 28 28 28 28 28 28 28 28 28 20 20 20 26 26 26 26 26 26 26 26 26 Final Carried 28 | 5 15 15 16 19 27 28 27 27 28 28 28 28 28 28 20 19 20 21 26 26 25 24 20 24 24 19 Class Distribution -------------------- 55% | Hauler-Mutant 13% | Mutant 9% | Scavenger-Mutant 9% | Hauler-Golem 6% | Hauler-Assassin Dominant Class ---------------- Mutant | -10/Materials Mutant | -10/Mines Mutant | -10/Exiles Hauler-Mutant | -9/Mines Hauler-Mutant | -8/Materials Hauler-Mutant | -7/Factory Hauler-Mutant | -7/Lower Caves Hauler-Mutant | -7/Lower Caves Hauler-Mutant | -7/Data Miner Hauler-Mutant | -6/Proximity Caves Hauler-Mutant | -6/Factory Hauler-Assassin | -6/Lower Caves Hauler-Mutant | -6/Lower Caves Hauler-Mutant | -6/Zion Hauler-Mutant | -6/Deep Caves Hauler-Mutant | -5/Proximity Caves Hauler-Golem | -5/Factory Commander-Golem | -5/Extension Hauler-Golem | -5/Cetus Hauler-Mutant | -5/Archives Hauler-Golem | -5/Hub_04(d) Hauler-Golem | -4/Factory Scavenger-Mutant | -3/Research Scavenger-Mutant | -2/Research Scavenger-Mutant | -1/Access Scavenger-Mutant | -1/Command Resources | -11 -10 -10 -10 -9 -8 -7 -7 -7 -7 -6 -6 -6 -6 -6 -6 -5 -5 -5 -5 -5 -5 -4 -3 -2 -1 -1 ----------- Run | Scr Mat Min Exi Min Mat Fac Low Low Dat Pro Fac Low Low Zio Dee Pro Fac Ext Cet Arc Hub Fac Res Res Acc Com Matter Collected 8301 | 278 126 43 20 532 678 692 186 184 . 106 299 357 70 190 950 196 . 199 50 10 522 392 376 985 235 625 Remotely . | . . . . . . . . . . . . . . . . . . . . . . . . . . . Salvage Created 15363 | 84 343 38 . 557 1303 1315 97 210 . 178 544 125 . . 637 115 . 1356 281 117 2183 916 882 2119 585 1378 Parts 724 | 8 22 3 . 33 66 79 3 5 . 8 23 7 . . 31 11 . 74 16 6 94 25 27 106 11 66 Haulers Intercepted 8 | . 1 . . . 4 2 . . . . . . . . . . . . . . . 1 . . . . Recyclers Shooed 6 | . . . . 1 2 . . . . . 1 . . . . . . . . . . . . . . 2 Parts Field Recycled . | . . . . . . . . . . . . . . . . . . . . . . . . . . . Retrieved Matter . | . . . . . . . . . . . . . . . . . . . . . . . . . . . Parts Self-Destructed 35 | . . . . . . . 3 2 . 15 . 3 . 4 . 8 . . . . . . . . . . Prevented 4 | . . . . . . . . . . . . 4 . . . . . . . . . . . . . . Kills | -11 -10 -10 -10 -9 -8 -7 -7 -7 -7 -6 -6 -6 -6 -6 -6 -5 -5 -5 -5 -5 -5 -4 -3 -2 -1 -1 ------- Run | Scr Mat Min Exi Min Mat Fac Low Low Dat Pro Fac Low Low Zio Dee Pro Fac Ext Cet Arc Hub Fac Res Res Acc Com Combat Hostiles Destroyed 244 | . 6 1 . 21 35 29 2 1 . 3 9 2 . . 10 6 . 18 4 1 24 11 14 29 6 12 Melee 1 | . . . . . . . . . . . 1 . . . . . . . . . . . . . . . Guns 53 | . 6 1 . 19 . 3 . . . 2 2 1 . . 3 . . . . . 3 . . 7 . 6 Cannons 85 | . . . . . 9 10 2 1 . 1 5 . . . 1 1 . 17 4 1 15 3 4 8 2 1 AOE 69 | . . . . 2 25 13 . . . . . . . . 5 5 . 1 . . 5 . 4 7 2 . Classes Destroyed 22 | 2 3 2 . 2 3 3 1 . . . . . . . 2 1 . 1 . . 2 . . . . . Worker 17 | . . 1 . . 4 2 . . . . . . . . . . . . . . 4 . . 4 1 1 Builder 11 | . . . . 1 1 3 . . . . . . . . . . . 2 . . 1 . . 3 . . Tunneler 2 | 1 . . . 1 . . . . . . . . . . . . . . . . . . . . . . Hauler 8 | . 1 . . . 4 2 . . . . . . . . . . . . . . . 1 . . . . Recycler 12 | 1 . . . 1 2 1 . . . . . . . . . . . 1 . . 2 . . . 1 3 Mechanic 2 | . . . . . . 1 . . . . . . . . . . . . . . . . . 1 . . Operator 4 | . . . . . . . . . . . . . . . . . . 1 . 1 1 . . 1 . . Watcher 17 | . 2 . . . 5 2 . . . . . . . . . . . 2 1 . . . 1 2 2 . Swarmer 54 | . . 1 . 12 14 7 . . . . 1 . . . . 5 . 3 1 . . . 5 5 . . Saboteur 2 | . . . . . . . . . . . . . . . . . . . . . 2 . . . . . Grunt 75 | . 6 . . 5 12 10 . . . 2 3 . . . . . . 6 . . 9 6 6 7 3 . Brawler 3 | . . . . . 1 . . . . . 1 . . . . . . . . . . . . 1 . . Duelist 8 | . . . . . 3 . . . . . 1 . . . . . . 2 . . 2 . . . . . Protector 3 | . . . . . . . . . . . . . . . . . . . . . 2 1 . . . . Sentry 25 | . . . . . 5 5 . . . . 1 . . . . . . 2 . 1 2 1 1 4 1 2 Hunter 18 | . . . . . . 3 1 1 . . . 2 . . . . . . . . 1 2 2 2 . 4 Programmer 29 | . . . . . . 4 1 . . 1 2 . . . . . . 2 . . . 1 . 10 2 6 Behemoth 3 | . . . . . . . . . . . . . . . . 1 . 2 . . . . . . . . Cetus Guard 3 | . . . . . . . . . . . . . . . . . . . 3 . . . . . . . Enhanced Grunt 2 | . . . . . . . . . . . . . . . . . . . . . 2 . . . . . Lightning 6 | . . . . . . . . . . . . . . . . . . . . . 6 . . . . . Z-Light 7 | . . . . . . . . . . . . . . . 7 . . . . . . . . . . . Packrat 2 | . . . . . . . . 2 . . . . . . . . . . . . . . . . . . Samaritan 1 | . . . . . . . 1 . . . . . . . . . . . . . . . . . . . Assembled 4 | . . . . 4 . . . . . . . . . . . . . . . . . . . . . . Golem 2 | . . . . . . . . . . . . . . . 2 . . . . . . . . . . . Butcher 3 | . . . . . . . . . . . . . . . . . . 3 . . . . . . . . Best Kill Streak 17 | 2 2 1 . 5 8 17 1 1 . 3 3 2 . . 5 5 . 3 3 1 10 8 9 17 3 6 Combat Bots Only 9 | . 2 1 . 5 5 9 1 1 . 3 3 2 . . 5 5 . 3 2 1 6 7 9 5 3 6 Max Kills in Single Turn 6 | 1 1 1 . 3 3 6 1 1 . 1 1 1 . . 2 2 . 2 1 1 4 1 2 2 2 2 Gunslinging 1 | . . . . 1 . . . . . . . . . . . . . . . . . . . 1 . . Exploded 4 | . . . . 2 3 4 . . . . . . . . 2 2 . 1 . . 3 . 2 2 1 . Melee 1 | . . . . . . . . . . . 1 . . . . . . . . . . . . . . . Uniques/NPCs Destroyed 1 | . . . . . . . . . . . . . . . 1 . . . . . . . . . . . Z-Imprinter (-6/Deep Caves) Combat | -11 -10 -10 -10 -9 -8 -7 -7 -7 -7 -6 -6 -6 -6 -6 -6 -5 -5 -5 -5 -5 -5 -4 -3 -2 -1 -1 -------- Run | Scr Mat Min Exi Min Mat Fac Low Low Dat Pro Fac Low Low Zio Dee Pro Fac Ext Cet Arc Hub Fac Res Res Acc Com Damage Taken 15010 | . 245 30 . 573 1263 1746 141 . . . 246 105 . . 1131 303 . 521 84 77 3935 571 882 905 220 2032 Core 1205 | . 52 16 . 86 168 150 15 . . . 13 . . . 33 40 . . . . 356 123 46 26 11 70 Absorbed by Shields 3189 | . . . . . . . . . . . . . . . . . . 268 81 . . . . 895 236 1709 Core Remaining (%) 81 | 100 . . . 38 69 . . . . 76 . . . . . 89 . . . . 64 89 96 98 . 94 Volleys Fired 806 | 8 35 4 . 51 70 77 12 9 . 5 16 5 . 1 27 8 11 54 27 9 120 25 32 113 36 51 Largest 3 | 2 2 2 . 2 2 2 2 2 . 2 2 2 . 1 2 2 1 2 2 2 2 3 1 2 2 2 Hottest 240 | 70 70 46 . 46 125 112 104 104 . 81 150 150 . 60 150 80 25 80 50 50 100 85 80 80 95 240 Shots Fired 1219 | 16 70 8 . 100 97 128 24 11 . 10 28 6 . 1 44 12 11 88 41 15 197 27 32 139 38 76 Gun 451 | 16 70 8 . 99 9 28 7 . . 5 11 1 . 1 23 . . . . . 80 1 . 36 . 56 Cannon 704 | . . . . . 65 87 17 11 . 5 17 5 . . 15 9 11 87 41 15 112 26 30 96 35 20 Launcher 64 | . . . . 1 23 13 . . . . . . . . 6 3 . 1 . . 5 . 2 7 3 . Special . | . . . . . . . . . . . . . . . . . . . . . . . . . . . Kinetic 459 | 8 43 8 . 99 20 56 19 2 . 10 4 1 . . 23 . . . . . 80 1 . 36 . 49 Thermal 412 | 8 27 . . . . . . . . . . . . 1 4 9 11 87 41 15 106 2 7 62 24 8 Explosive 61 | . . . . 1 23 13 . . . . . . . . 6 3 . 1 . . 2 . 2 7 3 . Electromagnetic 287 | . . . . . 54 59 5 9 . . 24 5 . . 11 . . . . . 9 24 23 34 11 19 Robot Hit Streak 58 | 4 11 3 . 13 28 58 13 9 . 16 17 15 . . 7 11 . 15 7 9 17 4 8 24 9 12 Robot Miss Streak 4 | 2 2 2 . 2 3 1 2 1 . 1 1 . . . 1 1 . 2 4 2 4 2 1 3 2 3 Penetration Max 2 | . . . . . . 1 . . . 1 . . . . 1 . . . . . 1 1 1 2 1 1 Secondary Targets 7 | . . . . 3 . . . . . . . . . . . . . . . . . . . 2 . 2 Max Gunslinging Chain 1 | . . . . 1 . . . . . . . . . . . . . . . . . . . 1 . 1 Shots Hit Robots 830 | 10 51 4 . 70 68 106 17 12 . 8 28 6 . . 22 6 . 61 24 11 117 19 24 95 24 47 Core Hits 501 | 3 19 2 . 33 78 64 4 6 . 4 15 2 . . 24 10 . 31 13 5 71 8 15 58 14 22 Critical Hits 59 | . 1 . . . 3 4 2 1 . 2 1 . . . 7 . . . . . 9 4 5 11 3 6 Critical Kills 20 | . . . . . 2 . 1 . . 2 . . . . 3 . . . . . 1 . 1 7 . 3 Critical Parts Destroyed 38 | . 1 . . . 1 4 1 1 . . 1 . . . 4 . . . . . 7 4 4 4 3 3 Melee Attacks 100 | . . . . . . 8 10 17 . . 7 3 5 43 2 . . . . . . . . . . 5 Impact . | . . . . . . . . . . . . . . . . . . . . . . . . . . . Slashing 100 | . . . . . . 8 10 17 . . 7 3 5 43 2 . . . . . . . . . . 5 Piercing . | . . . . . . . . . . . . . . . . . . . . . . . . . . . Sneak Attacks 2 | . . . . . . 1 . 1 . . . . . . . . . . . . . . . . . . Combat Hostiles . | . . . . . . . . . . . . . . . . . . . . . . . . . . . Follow-up Attacks . | . . . . . . . . . . . . . . . . . . . . . . . . . . . Damage Inflicted 39601 | 87 522 65 . 1141 4483 4379 460 332 . 115 813 183 . . 1493 714 . 3064 1319 470 5659 1315 1997 6070 2558 2362 Guns 6550 | 87 511 53 . 1026 121 670 108 . . 41 222 17 . . 219 . . . . . 995 . . 1211 . 1269 Cannons 21236 | . . . . . 1378 1873 312 209 . 74 463 166 . . 145 286 . 2898 1319 470 2847 1315 1354 3336 1712 1079 Explosions 11309 | . . . . 115 2973 1740 40 . . . . . . . 1024 428 . 166 . . 1817 . 637 1523 846 . Melee 452 | . . . . . . 96 . 123 . . 128 . . . 105 . . . . . . . . . . . Ramming 54 | . 11 12 . . 11 . . . . . . . . . . . . . . . . . 6 . . 14 Kinetic 7446 | 23 303 53 . 1026 396 1336 347 46 . 115 90 17 . . 219 . . . . . 995 . . 1211 . 1269 Thermal 12054 | 64 208 . . . 136 150 . . . . . . . . . 286 . 2898 1319 470 3683 93 201 1548 998 . Explosive 9030 | . . . . 115 2671 1590 . . . . . . . . 1024 428 . 166 . . 58 . 637 1523 818 . Electromagnetic 10565 | . . . . . 1269 1207 113 163 . . 595 166 . . 145 . . . . . 923 1222 1153 1788 742 1079 Impact . | . . . . . . . . . . . . . . . . . . . . . . . . . . . Slashing 452 | . . . . . . 96 . 123 . . 128 . . . 105 . . . . . . . . . . . Piercing . | . . . . . . . . . . . . . . . . . . . . . . . . . . . Highest Corruption 31 | . 1 1 1 1 . 2 3 3 3 3 . . . . . . . . . . 31 . . 18 . 6 Average Corruption 3 | . 1 1 1 1 . 1 2 3 3 3 . . . . . . . . . . 23 . . 7 . 4 Corruption Purged . | . . . . . . . . . . . . . . . . . . . . . . . . . . . Effects 175 | . 1 2 4 5 . 9 9 18 6 8 . . . . . . . . . . 67 . . 27 . 19 Message Errors 43 | . . 1 1 2 . 3 6 7 1 3 . . . . . . . . . . 8 . . 5 . 6 Matter Fused 20 | . . . . . . . . 3 2 2 . . . . . . . . . . 5 . . 4 . 4 Heat Flow Errors 8 | . . . . . . 1 . 1 1 . . . . . . . . . . . 2 . . 1 . 2 Energy Discharges 16 | . . . 2 . . 3 . 3 1 . . . . . . . . . . . 3 . . 3 . 1 Parts Rejected 1 | . . . . . . . . . . . . . . . . . . . . . . . . 1 . . Data Loss (minor) 22 | . 1 1 1 . . 1 2 4 1 1 . . . . . . . . . . 4 . . 3 . 3 Data Loss (major) 2 | . . . . . . . . . . . . . . . . . . . . . 1 . . . . 1 Misfires 2 | . . . . . . . . . . . . . . . . . . . . . 1 . . 1 . . Misdirections 1 | . . . . . . . . . . . . . . . . . . . . . . . . 1 . . Targeting Errors 51 | . . . . 2 . 1 1 . . 2 . . . . . . . . . . 35 . . 8 . 2 Weapon Failures 9 | . . . . 1 . . . . . . . . . . . . . . . . 8 . . . . . Overload Shots 7 | . . . . . . . . . . . . . . 1 . . . . . . . . . . . 6 Effects 1 | . . . . . . . . . . . . . . 1 . . . . . . . . . . . . Short Circuit 1 | . . . . . . . . . . . . . . 1 . . . . . . . . . . . . Overflow Damage 1846 | . . . . . 151 100 49 45 . . 1 . . . 178 . . 72 97 22 190 1 65 394 440 41 Projectiles 1189 | . . . . . 49 38 49 18 . . 1 . . . 17 . . 72 97 22 69 1 18 291 406 41 Explosions 477 | . . . . . 102 6 . . . . . . . . 64 . . . . . 121 . 47 103 34 . Melee 180 | . . . . . . 56 . 27 . . . . . . 97 . . . . . . . . . . . Knockbacks 14 | . . . . . 3 6 4 1 . . . . . . . . . . . . . . . . . . Impact . | . . . . . . . . . . . . . . . . . . . . . . . . . . . Kinetic 14 | . . . . . 3 6 4 1 . . . . . . . . . . . . . . . . . . Secondary . | . . . . . . . . . . . . . . . . . . . . . . . . . . . Self-Inflicted Damage 505 | . . . . . 190 33 . . . . . . . . . 33 . . . . 239 . 3 . . 7 Shots 17 | . . . . . 7 1 . . . . . . . . . 1 . . . . 8 . . . . . Rammed 7 | . 1 2 . . 2 . . . . . . . . . . . . . . . . . 1 . . 1 Targets Rammed 8 | . 1 2 . . 3 . . . . . . . . . . . . . . . . . 1 . . 1 Kicked . | . . . . . . . . . . . . . . . . . . . . . . . . . . . Crushed 1 | . . . . . 1 . . . . . . . . . . . . . . . . . . . . . Highest Temperature 407 | 90 162 15 . 132 42 350 30 252 178 . 124 75 . . 407 65 . 36 . . 305 138 235 172 36 352 Average Temperature 67 | 38 42 5 . 29 16 91 15 85 88 . 42 28 . . 131 39 . 17 . . 117 53 87 50 13 87 Received Heat Transfer 2539 | . 141 18 . 307 297 471 . . . . 12 . . . 291 24 . 92 . . 423 162 213 36 36 16 Effects 6 | . . . . . . 1 . . . . . . . . 3 . . . . . 1 . . . . 1 Interference 4 | . . . . . . . . . . . . . . . 3 . . . . . . . . . . 1 Matter Decay 1 | . . . . . . . . . . . . . . . . . . . . . 1 . . . . . Damage (minor) 1 | . . . . . . 1 . . . . . . . . . . . . . . . . . . . . Siege Activations . | . . . . . . . . . . . . . . . . . . . . . . . . . . . Robots Corrupted 45 | . . . . . 2 4 . . . . 1 1 . . 1 . . . . . 3 9 7 8 4 5 Combat Hostiles 36 | . . . . . 1 3 . . . . 1 1 . . 1 . . . . . 1 8 6 7 2 5 Parts Fried 108 | . . . . . 12 8 1 . . . 6 3 . . . . . . . . 6 15 15 20 12 10 Impact Corruptions . | . . . . . . . . . . . . . . . . . . . . . . . . . . . Robots Melted . | . . . . . . . . . . . . . . . . . . . . . . . . . . . Combat Hostiles . | . . . . . . . . . . . . . . . . . . . . . . . . . . . Parts Melted 10 | . . . . . 1 . . . . . . . . . . 1 . 2 . . 2 . . . 4 . Heat Transferred 7308 | 185 629 . . . 200 150 . . . . . . . . . 150 . 1587 725 275 2132 50 100 750 375 . Parts Sabotaged . | . . . . . . . . . . . . . . . . . . . . . . . . . . . Parts Stolen . | . . . . . . . . . . . . . . . . . . . . . . . . . . . Parts Stripped . | . . . . . . . . . . . . . . . . . . . . . . . . . . . Power Chain Reactions 9 | . . . . . 2 2 1 . . . . . . . . . . . . . 4 . . . . . Missiles Intercepted . | . . . . . . . . . . . . . . . . . . . . . . . . . . . Alert | -11 -10 -10 -10 -9 -8 -7 -7 -7 -7 -6 -6 -6 -6 -6 -6 -5 -5 -5 -5 -5 -5 -4 -3 -2 -1 -1 ------- Run | Scr Mat Min Exi Min Mat Fac Low Low Dat Pro Fac Low Low Zio Dee Pro Fac Ext Cet Arc Hub Fac Res Res Acc Com Peak Influence 1823 | 10 139 61 . 277 713 639 . . . . 296 . . . . . 178 1411 1261 711 1823 971 889 1311 1107 886 Average Influence 473 | 4 44 27 . 142 360 402 . . . . 122 . . . . . 67 532 967 674 1071 844 633 875 935 703 Maximum Alert Level 5 | . . . . 1 3 2 . . . . 1 . . . . . . 4 4 3 5 3 3 4 4 3 Low Security (%) 37 | 100 100 100 . 72 32 9 . . . . 87 . . . . . 100 27 . . 2 . . . . . Level 1 11 | . . . . 27 18 28 . . . . 12 . . . . . . 32 . . 4 . . . . . Level 2 18 | . . . . . 43 61 . . . . . . . . . . . 4 . 20 6 . 70 24 . 49 Level 3 26 | . . . . . 4 . . . . . . . . . . . . 17 83 79 51 100 30 59 91 50 Level 4 5 | . . . . . . . . . . . . . . . . . . 18 16 . 26 . . 16 8 . Level 5 . | . . . . . . . . . . . . . . . . . . . . . 8 . . . . . High Security . | . . . . . . . . . . . . . . . . . . . . . . . . . . . Max Security . | . . . . . . . . . . . . . . . . . . . . . . . . . . . Squads Dispatched 52 | . 1 . . 2 3 11 . . . . 5 . . . . . 1 4 . . 9 4 3 5 2 2 Investigation 4 | . . . . 2 . . . . . . 2 . . . . . . . . . . . . . . . Extermination 14 | . . . . . . 4 . . . . 2 . . . . . . . . . . 2 1 2 1 2 Reinforcement 17 | . 1 . . . 1 4 . . . . 1 . . . . . . 3 . . 3 1 1 1 1 . Assault 12 | . . . . . 1 . . . . . . . . . . . 1 1 . . 5 1 1 2 . . Garrison 5 | . . . . . 1 3 . . . . . . . . . . . . . . 1 . . . . . Intercept . | . . . . . . . . . . . . . . . . . . . . . . . . . . . Construction Impeded 7 | . . . . . 1 1 . . . . . . . . . . . 1 . . 2 . 1 1 . . Haulers Reinforced 4 | . . . . . . 2 . . . . . . . . . . . . . . . 1 . . 1 . Stealth | -11 -10 -10 -10 -9 -8 -7 -7 -7 -7 -6 -6 -6 -6 -6 -6 -5 -5 -5 -5 -5 -5 -4 -3 -2 -1 -1 --------- Run | Scr Mat Min Exi Min Mat Fac Low Low Dat Pro Fac Low Low Zio Dee Pro Fac Ext Cet Arc Hub Fac Res Res Acc Com Distress Signals 14 | . 1 . . 1 3 3 . . . . . . . . . . . . 2 . 1 . . 2 . 1 Communications Jammed 3 | . . . . . . . . . . . . . . . . . . . . . . . . . 1 2 Distress Signals 3 | . . . . . . . . . . . . . . . . . . . . . . . . . 1 2 Times Spotted 399 | . 17 4 . 27 48 37 2 1 . 4 14 2 . . 10 2 . 53 27 5 42 14 15 43 12 20 Peak Tracking Total 9 | . 3 3 . 4 8 9 1 . . 3 4 2 . . 6 3 . 5 8 2 6 7 6 7 4 5 Tactical Retreats 20 | . 1 . . 5 4 . . . . . . 1 . . . . . 2 . . . 1 2 3 1 . Traps | -11 -10 -10 -10 -9 -8 -7 -7 -7 -7 -6 -6 -6 -6 -6 -6 -5 -5 -5 -5 -5 -5 -4 -3 -2 -1 -1 ------- Run | Scr Mat Min Exi Min Mat Fac Low Low Dat Pro Fac Low Low Zio Dee Pro Fac Ext Cet Arc Hub Fac Res Res Acc Com Traps Triggered 13 | . 1 . . . . . . . . . 1 . . . . . . 4 . . . . . 3 . 4 Indirectly . | . . . . . . . . . . . . . . . . . . . . . . . . . . . Trap Hack Attempts . | . . . . . . . . . . . . . . . . . . . . . . . . . . . Triggered . | . . . . . . . . . . . . . . . . . . . . . . . . . . . Disarmed . | . . . . . . . . . . . . . . . . . . . . . . . . . . . Reprogrammed . | . . . . . . . . . . . . . . . . . . . . . . . . . . . Reused . | . . . . . . . . . . . . . . . . . . . . . . . . . . . Traps Extracted . | . . . . . . . . . . . . . . . . . . . . . . . . . . . Installed . | . . . . . . . . . . . . . . . . . . . . . . . . . . . Triggered 2 | . . . . . 1 . . . . 1 . . . . . . . . . . . . . . . . Machines | -11 -10 -10 -10 -9 -8 -7 -7 -7 -7 -6 -6 -6 -6 -6 -6 -5 -5 -5 -5 -5 -5 -4 -3 -2 -1 -1 ---------- Run | Scr Mat Min Exi Min Mat Fac Low Low Dat Pro Fac Low Low Zio Dee Pro Fac Ext Cet Arc Hub Fac Res Res Acc Com Machines Disabled 52 | . . . . 1 6 1 . . . . 5 . . . 2 . 1 5 5 1 17 . . 3 3 2 Max in Single Turn 6 | . . . . 1 1 1 . . . . 1 . . . 1 . 1 1 1 . 6 . . 1 1 1 Garrison Access 5 | . . . . . 1 . . . . . 1 . . . . . 1 . . . 1 . . 1 . . Network Hub 3 | . . . . . . . . . . . . . . . . . . . . . 3 . . . . . Energy Cycler 2 | . . . . . . . . . . . . . . . . . . 2 . . . . . . . . Machines Sabotaged . | . . . . . . . . . . . . . . . . . . . . . . . . . . . Garrisons Compromised . | . . . . . . . . . . . . . . . . . . . . . . . . . . . Overloaded Fab Kills . | . . . . . . . . . . . . . . . . . . . . . . . . . . . Fab Network Shutdowns . | . . . . . . . . . . . . . . . . . . . . . . . . . . . Hacking | -11 -10 -10 -10 -9 -8 -7 -7 -7 -7 -6 -6 -6 -6 -6 -6 -5 -5 -5 -5 -5 -5 -4 -3 -2 -1 -1 --------- Run | Scr Mat Min Exi Min Mat Fac Low Low Dat Pro Fac Low Low Zio Dee Pro Fac Ext Cet Arc Hub Fac Res Res Acc Com Machines Accessed 56 | . 5 . 1 2 9 5 . 1 4 . 4 . . 1 . . 1 6 3 . 3 1 1 5 3 1 Terminals 41 | . 5 . . 1 8 3 . 1 . . 2 . . . . . 1 6 3 . 2 . 1 4 3 1 Fabricators 1 | . . . . . . . . . . . 1 . . . . . . . . . . . . . . . Repair Stations 2 | . . . . . . 2 . . . . . . . . . . . . . . . . . . . . Recycling Units . | . . . . . . . . . . . . . . . . . . . . . . . . . . . Scanalyzers 1 | . . . . . . . . . . . . . . . . . . . . . . 1 . . . . Garrison Access 4 | . . . . . 1 . . . . . 1 . . . . . . . . . 1 . . 1 . . Total Hacks 194 | . 16 . 4 4 32 13 . 3 29 . 8 . . 4 . . 4 17 9 . 6 3 4 23 10 5 Successful 97 | . 7 . 4 2 13 6 . 1 29 . 4 . . 4 . . 2 8 2 . 2 2 1 8 1 1 Failed 97 | . 9 . . 2 19 7 . 2 . . 4 . . . . . 2 9 7 . 4 1 3 15 9 4 Catastrophic 21 | . . . . . 2 . . 1 . . 2 . . . . . . 4 . . . . . 6 6 . Database Lockouts . | . . . . . . . . . . . . . . . . . . . . . . . . . . . Manual 107 | . 10 . . 1 19 10 . 3 . . 5 . . . . . 2 17 5 . 6 . 4 11 9 5 Terminals 141 | . 16 . . 3 31 10 . 3 . . 4 . . . . . 4 17 9 . 5 . 4 20 10 5 Fabricators 3 | . . . . . . . . . . . 3 . . . . . . . . . . . . . . . Repair Stations 3 | . . . . . . 3 . . . . . . . . . . . . . . . . . . . . Recycling Units . | . . . . . . . . . . . . . . . . . . . . . . . . . . . Scanalyzers 3 | . . . . . . . . . . . . . . . . . . . . . . 3 . . . . Garrison Access 6 | . . . . . 1 . . . . . 1 . . . . . . . . . 1 . . 3 . . Terminal Hacks 68 | . 4 . 4 1 9 3 . . 29 . . . . 4 . . 2 5 2 . 1 . . 4 . . Record 15 | . . . 4 . . . . . 11 . . . . . . . . . . . . . . . . . Part Schematic 14 | . . . . . 2 . . . 8 . . . . 4 . . . . . . . . . . . . Robot Schematic 7 | . . . . . . . . . 7 . . . . . . . . . . . . . . . . . Prototype ID Bank 6 | . . . . . 2 . . . 3 . . . . . . . . . . . . . . 1 . . Open Door 2 | . . . . 1 . . . . . . . . . . . . 1 . . . . . . . . . Level Access Points 1 | . . . . . . . . . . . . . . . . . . . . . . . . 1 . . Branch Access Points 3 | . . . . . 1 1 . . . . . . . . . . 1 . . . . . . . . . Terminal Index 5 | . 1 . . . 1 . . . . . . . . . . . . 1 . . 1 . . 1 . . Unreport Threat 9 | . . . . . 1 2 . . . . . . . . . . . 3 2 . . . . 1 . . Locate Traps 2 | . 2 . . . . . . . . . . . . . . . . . . . . . . . . . Recall Reinforcements 1 | . . . . . . . . . . . . . . . . . . 1 . . . . . . . . Hauler Manifests 1 | . . . . . 1 . . . . . . . . . . . . . . . . . . . . . Zone Layout 2 | . 1 . . . 1 . . . . . . . . . . . . . . . . . . . . . Fabricator Hacks 2 | . . . . . . . . . . . 2 . . . . . . . . . . . . . . . Load Schematic 1 | . . . . . . . . . . . 1 . . . . . . . . . . . . . . . Build 1 | . . . . . . . . . . . 1 . . . . . . . . . . . . . . . Repair Station Hacks 1 | . . . . . . 1 . . . . . . . . . . . . . . . . . . . . Scan Component 1 | . . . . . . 1 . . . . . . . . . . . . . . . . . . . . Recycling Unit Hacks . | . . . . . . . . . . . . . . . . . . . . . . . . . . . Scanalyzer 2 | . . . . . . . . . . . . . . . . . . . . . . 2 . . . . Insert Component 2 | . . . . . . . . . . . . . . . . . . . . . . 2 . . . . Garrison Access Hacks 1 | . . . . . 1 . . . . . . . . . . . . . . . . . . . . . Seal Access 1 | . . . . . 1 . . . . . . . . . . . . . . . . . . . . . Unauthorized Hacks 23 | . 3 . . 1 3 2 . 1 . . 2 . . . . . . 3 . . 1 . 1 4 1 1 Terminals 22 | . 3 . . 1 3 2 . 1 . . 1 . . . . . . 3 . . 1 . 1 4 1 1 Track 18 | . 3 . . 1 2 2 . 1 . . 1 . . . . . . . . . 1 . 1 4 1 1 Botnet 4 | . . . . . 1 . . . . . . . . . . . . 3 . . . . . . . . Fabricators . | . . . . . . . . . . . . . . . . . . . . . . . . . . . Repair Stations . | . . . . . . . . . . . . . . . . . . . . . . . . . . . Recycling Units . | . . . . . . . . . . . . . . . . . . . . . . . . . . . Scanalyzers . | . . . . . . . . . . . . . . . . . . . . . . . . . . . Garrison Access 1 | . . . . . . . . . . . 1 . . . . . . . . . . . . . . . Jam 1 | . . . . . . . . . . . 1 . . . . . . . . . . . . . . . Data Cores Recovered . | . . . . . . . . . . . . . . . . . . . . . . . . . . . Used . | . . . . . . . . . . . . . . . . . . . . . . . . . . . Hacking Detections 44 | . 5 . . 1 8 5 . 1 . . 3 . . . . . 1 6 3 . 3 . 1 3 3 1 Full Trace Events 2 | . . . . 1 . . . . . . 1 . . . . . . . . . . . . . . . Feedback Events . | . . . . . . . . . . . . . . . . . . . . . . . . . . . Feedback Blocked . | . . . . . . . . . . . . . . . . . . . . . . . . . . . Robot Schematics Acquired 7 | . . . . . . . . . 7 . . . . . . . . . . . . . . . . . Robots Built . | . . . . . . . . . . . . . . . . . . . . . . . . . . . Matter . | . . . . . . . . . . . . . . . . . . . . . . . . . . . Time . | . . . . . . . . . . . . . . . . . . . . . . . . . . . Total Robot Build Rating . | . . . . . . . . . . . . . . . . . . . . . . . . . . . Part Schematics Acquired 14 | . . . . . 2 . . . 8 . . . . 4 . . . . . . . . . . . . Parts Built 1 | . . . . . . . . . . . 1 . . . . . . . . . . . . . . . Matter 318 | . . . . . . . . . . . 318 . . . . . . . . . . . . . . . Time 84 | . . . . . . . . . . . 84 . . . . . . . . . . . . . . . Total Part Build Rating 6 | . . . . . . . . . . . 6 . . . . . . . . . . . . . . . Parts Repaired . | . . . . . . . . . . . . . . . . . . . . . . . . . . . Time . | . . . . . . . . . . . . . . . . . . . . . . . . . . . Parts Recycled . | . . . . . . . . . . . . . . . . . . . . . . . . . . . Recycled Matter . | . . . . . . . . . . . . . . . . . . . . . . . . . . . Retrieved Matter . | . . . . . . . . . . . . . . . . . . . . . . . . . . . Retrieved Components . | . . . . . . . . . . . . . . . . . . . . . . . . . . . Parts Scanalyzed . | . . . . . . . . . . . . . . . . . . . . . . . . . . . Part Schematics Acquired . | . . . . . . . . . . . . . . . . . . . . . . . . . . . Parts Damaged . | . . . . . . . . . . . . . . . . . . . . . . . . . . . Bothacking | -11 -10 -10 -10 -9 -8 -7 -7 -7 -7 -6 -6 -6 -6 -6 -6 -5 -5 -5 -5 -5 -5 -4 -3 -2 -1 -1 ------------ Run | Scr Mat Min Exi Min Mat Fac Low Low Dat Pro Fac Low Low Zio Dee Pro Fac Ext Cet Arc Hub Fac Res Res Acc Com Used RIF Installer . | . . . . . . . . . . . . . . . . . . . . . . . . . . . Robots Hacked . | . . . . . . . . . . . . . . . . . . . . . . . . . . . Non-combat . | . . . . . . . . . . . . . . . . . . . . . . . . . . . Combat . | . . . . . . . . . . . . . . . . . . . . . . . . . . . Robot Hacks Applied . | . . . . . . . . . . . . . . . . . . . . . . . . . . . Relay Couplers Released 6 | . . . . . . . . . . . . . . . . . 1 . . . 3 . . 2 . . Machine Destruction 6 | . . . . . . . . . . . . . . . . . 1 . . . 3 . . 2 . . Robots Rewired 9 | . . . . . . . . . . . . . . . . . . 9 . . . . . . . . Allies Hacked 1 | . . . . . . . . . . . . . . . . . . 1 . . . . . . . . Hacks Repelled . | . . . . . . . . . . . . . . . . . . . . . . . . . . . Allies | -11 -10 -10 -10 -9 -8 -7 -7 -7 -7 -6 -6 -6 -6 -6 -6 -5 -5 -5 -5 -5 -5 -4 -3 -2 -1 -1 -------- Run | Scr Mat Min Exi Min Mat Fac Low Low Dat Pro Fac Low Low Zio Dee Pro Fac Ext Cet Arc Hub Fac Res Res Acc Com Total Allies 28 | . . 3 . . . . . . . 1 . . . 3 . . . 16 5 . . . . . . . Largest Group 11 | . . 3 1 1 . . . . . 1 1 . . 3 3 . . 11 6 5 4 . . . . . Highest-Rated Group 620 | . . 40 16 16 . . . . . 94 94 . . 76 76 . . 444 620 526 376 . . . . . Highest-Rated Ally 156 | . . 16 16 16 . . . . . 94 94 . . 31 31 . . 156 156 150 94 . . . . . Total Orders 4 | . . . . . . . . . . . . . . . . . . . . . . . . . . 4 EXPLORE 4 | . . . . . . . . . . . . . . . . . . . . . . . . . . 4 Ally Attacks 424 | . . 19 . 3 . . . . . 5 31 . . . 23 . . 203 98 12 30 . . . . . Total Damage 10425 | . . 143 . 30 . . . . . 152 897 . . . 190 . . 4989 2481 509 1034 . . . . . Kills 81 | . . 4 . 1 . . . . . 2 6 . . . 1 . . 35 21 3 8 . . . . . Allies Corrupted 3 | . . . . . . . . . . . . . . . . . . 1 . . 2 . . . . . Allies Melted . | . . . . . . . . . . . . . . . . . . . . . . . . . . . Intel | -11 -10 -10 -10 -9 -8 -7 -7 -7 -7 -6 -6 -6 -6 -6 -6 -5 -5 -5 -5 -5 -5 -4 -3 -2 -1 -1 ------- Run | Scr Mat Min Exi Min Mat Fac Low Low Dat Pro Fac Low Low Zio Dee Pro Fac Ext Cet Arc Hub Fac Res Res Acc Com Robot Analysis Total . | . . . . . . . . . . . . . . . . . . . . . . . . . . . Derelict Logs Recovered 10 | . . 3 . 1 . . 1 2 . . . . 2 . . 1 . . . . . . . . . . Drone Launches 4 | . . . . . . . . . . . . . . . . . . . . . . . . . . 4 Drone Recoveries . | . . . . . . . . . . . . . . . . . . . . . . . . . . . Exploration | -11 -10 -10 -10 -9 -8 -7 -7 -7 -7 -6 -6 -6 -6 -6 -6 -5 -5 -5 -5 -5 -5 -4 -3 -2 -1 -1 ------------- Run | Scr Mat Min Exi Min Mat Fac Low Low Dat Pro Fac Low Low Zio Dee Pro Fac Ext Cet Arc Hub Fac Res Res Acc Com Turns Passed 27309 | 140 1207 905 1000 1086 1591 1518 741 1304 151 458 1435 587 811 3149 3305 414 399 1418 512 444 993 768 310 1194 559 910 Spaces Moved 12495 | 68 625 485 551 498 682 615 323 634 80 232 623 290 421 1915 1422 214 153 592 238 92 357 121 126 487 266 385 Core 484 | 5 . . . . . . . . . . . . . 479 . . . . . . . . . . . . Treads 8418 | 63 625 485 551 498 682 615 323 634 80 232 623 290 421 1436 860 . . . . . . . . . . . Legs 3593 | . . . . . . . . . . . . . . . 562 214 153 592 238 92 357 121 126 487 266 385 Wheels . | . . . . . . . . . . . . . . . . . . . . . . . . . . . Hover . | . . . . . . . . . . . . . . . . . . . . . . . . . . . Flight . | . . . . . . . . . . . . . . . . . . . . . . . . . . . Fastest Speed 50 | 50 160 180 180 180 180 180 190 190 190 190 186 186 186 50 169 169 169 169 169 169 149 149 179 179 179 156 Average Speed 177 | 151 165 180 180 180 188 189 192 191 190 190 205 186 186 153 181 169 169 169 169 169 170 160 184 179 179 178 Slowest Speed 240 | 160 180 180 180 180 200 240 210 210 190 190 230 186 189 189 220 169 169 169 169 169 190 170 186 179 179 179 Overloaded Moves . | . . . . . . . . . . . . . . . . . . . . . . . . . . . Propulsion Burnouts . | . . . . . . . . . . . . . . . . . . . . . . . . . . . Robots Hopped . | . . . . . . . . . . . . . . . . . . . . . . . . . . . Cave-ins Triggered 1 | . . . . . . . . . . . . . . . . . . . . . 1 . . . . . Exploration Rate (%) 51 | 6 92 93 91 95 72 26 52 75 68 53 23 43 57 86 74 39 8 84 78 81 36 4 6 19 9 21 Regions Visited 26 Branch Regions 17 Pre-discovered Areas 8 | . . 2 1 1 . . . 1 1 . . . 2 . . . . . . . . . . . . . Known Exits Taken 14 | . . . . . 1 1 1 1 1 1 1 1 1 1 1 1 1 . . . . . . 1 . . Unknown Exits Taken 12 | 1 1 1 1 1 . . . . . . . . . . . . . 1 1 1 1 1 1 . 1 . Scrap Searched 20 | . . 1 . 4 . . . . . 1 . . 9 5 . . . . . . . . . . . . Spaces Dug 118 | . . . . . 21 7 10 15 . . 4 3 4 3 2 1 10 4 . . 8 . 2 10 5 9 Terrain Destroyed 1076 | . . . . 8 114 50 12 15 . . 4 3 4 3 34 42 10 42 2 4 578 2 37 70 28 14 Melee 48 | . . . . . . 7 10 15 . . 4 3 4 3 . . . . . . . . . . . 2 Projectile 154 | . . . . . 1 4 2 . . . . . . . 4 3 10 18 2 4 49 2 6 29 8 12 AOE 874 | . . . . 8 113 39 . . . . . . . . 30 39 . 24 . . 529 . 31 41 20 . Actions | -11 -10 -10 -10 -9 -8 -7 -7 -7 -7 -6 -6 -6 -6 -6 -6 -5 -5 -5 -5 -5 -5 -4 -3 -2 -1 -1 --------- Run | Scr Mat Min Exi Min Mat Fac Low Low Dat Pro Fac Low Low Zio Dee Pro Fac Ext Cet Arc Hub Fac Res Res Acc Com Total 16318 | 87 738 510 561 607 882 820 399 687 80 239 743 325 438 2066 2119 252 286 920 314 367 529 671 171 673 312 522 Wait 1916 | . 42 16 . 32 58 54 43 23 . 1 25 6 . 3 547 18 114 83 25 263 8 508 1 10 1 35 Move 12468 | 67 624 484 550 497 681 614 322 633 79 231 622 289 420 1914 1421 213 152 591 237 91 356 120 125 486 265 384 Hop . | . . . . . . . . . . . . . . . . . . . . . . . . . . . Pick Up 206 | 5 19 1 4 9 21 15 . . . . 16 4 3 49 22 2 2 1 10 . 7 3 1 10 . 2 Fast Attach 80 | 7 2 . . . 6 6 . . . 1 5 . 2 12 15 . 1 3 4 . 4 . . 7 2 3 Attach 93 | . . . . 5 9 8 1 . . . 5 . 1 4 10 1 1 . . . 8 1 7 16 3 13 Detach 70 | . . . . . 2 1 1 . 1 . 3 . . 3 11 2 3 4 2 3 3 3 3 13 4 8 Swap 184 | . 2 1 2 6 22 22 10 5 . 1 17 13 4 9 15 7 . 9 . 1 18 4 1 7 . 8 Drop 189 | . 13 2 5 7 10 15 . . . . 16 5 3 28 49 1 2 3 9 . 5 7 . 6 1 2 Fire 806 | 8 35 4 . 51 70 77 12 9 . 5 16 5 . 1 27 8 11 54 27 9 120 25 32 113 36 51 Melee 100 | . . . . . . 8 10 17 . . 7 3 5 43 2 . . . . . . . . . . 5 Ram . | . . . . . . . . . . . . . . . . . . . . . . . . . . . Kick 2 | . . . . . . . . . . . . . . . . . . . . . . . 1 . . 1 Crush 6 | . 1 2 . . 3 . . . . . . . . . . . . . . . . . . . . . Escape Stasis 41 | . . . . . . . . . . . 2 . . . . . . 24 . . . . . 5 . 10 Rewire 157 | . . . . . . . . . . . 9 . . . . . . 148 . . . . . . . . Trap . | . . . . . . . . . . . . . . . . . . . . . . . . . . . Miscellaneous . | . . . . . . . . . . . . . . . . . . . . . . . . . . . Route ------- -11/Scrapyard -10/Materials (discovered 4 exits: [*Mat x3] / [*Min]) -10/Mines (discovered 3 exits: [*Mat x2] / *Exi) -10/Exiles (discovered 2 exits: *Min x2) -9/Mines -8/Materials (discovered 3 exits: *Fac x3) -7/Factory (discovered 3 exits: *Fac / *Low x2) -7/Lower Caves -7/Lower Caves (discovered 2 exits: *Fac / *Dat) -7/Data Miner -6/Proximity Caves -6/Factory (discovered 2 exits: *Fac / *Low) -6/Lower Caves -6/Lower Caves -6/Zion (discovered 2 exits: *Dee / [*Pro]) -6/Deep Caves -5/Proximity Caves -5/Factory (discovered 4 exits: Upp x2 / *Ext x2) -5/Extension (discovered 3 exits: *Fac x2 / *Cet) -5/Cetus (discovered 2 exits: *Fac / *Arc) -5/Archives (discovered 3 exits: Fac / *Hub x2) -5/Hub_04(d) (discovered 3 exits: *Fac x3) -4/Factory -3/Research -2/Research (discovered 3 exits: *Acc x3) -1/Access -1/Command To Epsilon Eridani History --------- Turn | Location | Event 6 | -11/Scrapyard | Discovered new exit (range 16) 141 | -11/Scrapyard | Entered Materials 313 | -10/Materials | Build established: Mutant 427 | -10/Materials | Discovered new exit (range 16) 629 | -10/Materials | Discovered new exit (range 8) 678 | -10/Materials | Discovered new exit (range 5) 970 | -10/Materials | Discovered new exit (range 15) 1348 | -10/Materials | Entered Mines 1352 | -10/Mines | Assisted by bots powering up and referring to "LRC-V3" 1370 | -10/Mines | Met a Derelict bent on vengeance 1519 | -10/Mines | Discovered new exit (range 16) 1582 | -10/Mines | Learned location of 1 exit from Materials 1623 | -10/Mines | Learned location of Zion (-6) 1663 | -10/Mines | Discovered new exit (range 15) 2244 | -10/Mines | Deemed a non-threat by the Exiles lab entrance 2244 | -10/Mines | Discovered new exit (range 5) 2253 | -10/Mines | Entered Exiles 2253 | -10/Exiles | Accompanied by 1 ally 2280 | -10/Exiles | Discovered new exit (range 15) 2320 | -10/Exiles | Met 8R-AWN 2349 | -10/Exiles | Met EX-HEX 2397 | -10/Exiles | Met EX-BIN 2568 | -10/Exiles | Met EX-DEC 2658 | -10/Exiles | Visited The Gauntlet 3226 | -10/Exiles | Discovered new exit (range 14) 3253 | -10/Exiles | Entered Mines 3253 | -9/Mines | Accompanied by 1 ally 3279 | -9/Mines | Assembled infested the area 3392 | -9/Mines | Met a Derelict shopkeep closing up shop 3465 | -9/Mines | Build established: Hauler-Mutant 3525 | -9/Mines | Core integrity fell below 50% 3583 | -9/Mines | Received a Rocket Launcher from a helpful Derelict 3712 | -9/Mines | Learned location of Recycling (-9) 4050 | -9/Mines | Found a hidden stash of uninstalled traps 4265 | -9/Mines | Discovered new exit (range 6) 4339 | -9/Mines | Entered Materials 4339 | -8/Materials | Evolved 4 slots: Propulsion x1, Utility x3 4340 | -8/Materials | Identified exit to Factory 4804 | -8/Materials | Garrison activated, responded to threat 5197 | -8/Materials | Discovered exit to Factory (range 11) 5539 | -8/Materials | First assault squad dispatched 5645 | -8/Materials | Lost 5 parts (2n1u2w) 5768 | -8/Materials | Discovered exit to Factory (range 6) 5930 | -8/Materials | Entered Factory 5930 | -7/Factory | Evolved 2 slots: Utility x2 6184 | -7/Factory | Identified exit to Lower Caves 6314 | -7/Factory | Garrison activated, responded to threat 6343 | -7/Factory | Destroyed 7 combat bots 6493 | -7/Factory | Destroyed 9 combat bots 7216 | -7/Factory | Discovered new exit (range 12) 7448 | -7/Factory | Entered Lower Caves 7681 | -7/Lower Caves | Encountered a Warlord checkpoint 7765 | -7/Lower Caves | Learned Factory security intel 8170 | -7/Lower Caves | Discovered new exit (range 8) 8185 | -7/Lower Caves | Identified exit to Lower Caves 8189 | -7/Lower Caves | Entered another Lower Caves area 8243 | -7/Lower Caves | Discovered new exit (range 8) 8602 | -7/Lower Caves | Learned Factory security intel 9468 | -7/Lower Caves | Discovered new exit (range 6) 9476 | -7/Lower Caves | Identified exit to Data Miner 9493 | -7/Lower Caves | Entered Data Miner 9493 | -7/Data Miner | Discovered new exit (range 7) 9530 | -7/Data Miner | Met Data Miner 9564 | -7/Data Miner | Learned location of Section 7 (-2) 9564 | -7/Data Miner | Acquired the access code to Warlord's prototype stash 9597 | -7/Data Miner | Received God Mode back door access code from Data Miner 9642 | -7/Data Miner | Identified exit to Proximity Caves 9644 | -7/Data Miner | Entered Proximity Caves 9933 | -6/Proximity Caves | Escorted by Enhanced Grunt 10066 | -6/Proximity Caves | Discovered new exit (range 12) 10085 | -6/Proximity Caves | Identified exit to Factory 10102 | -6/Proximity Caves | Entered Factory 10102 | -6/Factory | Accompanied by 1 ally 10102 | -6/Factory | Evolved 2 slots: Utility x2 10494 | -6/Factory | Incoming investigation squad redirected 10629 | -6/Factory | Build established: Hauler-Skirmisher 10855 | -6/Factory | Fabricated Mni. Smartbomb Launcher (x1) 11049 | -6/Factory | Discovered new exit (range 21) 11105 | -6/Factory | Identified exit to Factory 11408 | -6/Factory | Discovered new exit (range 20) 11535 | -6/Factory | Identified exit to Lower Caves 11537 | -6/Factory | Entered Lower Caves 11717 | -6/Lower Caves | Encountered a Warlord checkpoint 11945 | -6/Lower Caves | Build established: Hauler-Assassin 12010 | -6/Lower Caves | Discovered new exit (range 17) 12119 | -6/Lower Caves | Identified exit to Lower Caves 12124 | -6/Lower Caves | Entered another Lower Caves area 12201 | -6/Lower Caves | Encountered a Warlord checkpoint 12318 | -6/Lower Caves | Build established: Hauler-Mutant 12531 | -6/Lower Caves | Discovered new exit (range 14) 12584 | -6/Lower Caves | Found Alien Artifact 12584 | -6/Lower Caves | Identified Core Expander 12584 | -6/Lower Caves | Installed Core Expander, added new Utility slot 12635 | -6/Lower Caves | Identified exit to Zion 12879 | -6/Lower Caves | Build established: Hauler-Assassin 12935 | -6/Lower Caves | Entered Zion 12993 | -6/Zion | Found Prototype Processor 12996 | -6/Zion | Found Prototype Processor 12999 | -6/Zion | Found Prototype Processor 13002 | -6/Zion | Found Prototype Processor 13009 | -6/Zion | Found Prototype Processor 13010 | -6/Zion | Identified Exp. Armor Integrity Analyzer (x2) 13037 | -6/Zion | Discovered new exit (range 21) 13445 | -6/Zion | Gained Derelict followers 13538 | -6/Zion | Discovered new exit (range 22) 13540 | -6/Zion | Received a visual enhancement algorithm 14034 | -6/Zion | Found Prototype Device 14050 | -6/Zion | Identified Mobile Refinery Mk. CCLXVII 14170 | -6/Zion | Build established: Hauler-Mutant 15431 | -6/Zion | Build established: Mutant 15490 | -6/Zion | Identified exit to Deep Caves 15867 | -6/Zion | Identified Exp. Signal Interpreter 15869 | -6/Zion | Identified Exp. Melee Analysis Suite (x2) 15905 | -6/Zion | Build established: Hauler-Mutant 16078 | -6/Zion | Saw the warning signs outside the Deep Caves entrance 16084 | -6/Zion | Entered Deep Caves 16084 | -6/Deep Caves | Accompanied by 3 allies 16378 | -6/Deep Caves | Z-Facility disabled 16392 | -6/Deep Caves | Attacked by Z-Imprinter 16425 | -6/Deep Caves | Destroyed Z-Imprinter 16472 | -6/Deep Caves | Found Prototype Device 16472 | -6/Deep Caves | Identified Zio. Metafield Generator 16484 | -6/Deep Caves | Found Prototype Protection 16484 | -6/Deep Caves | Identified Zio. Weapon Casing 16725 | -6/Deep Caves | Found Prototype Protection 16725 | -6/Deep Caves | Identified Zio. Heavy Carapace 16730 | -6/Deep Caves | Found Zio. Heavy Carapace 16738 | -6/Deep Caves | Found Zio. Heavy Carapace 17641 | -6/Deep Caves | Spotted as-00318 17668 | -6/Deep Caves | Destroyed as-00318 17725 | -6/Deep Caves | Exposed GOLEM chamber 17729 | -6/Deep Caves | Found GOLEM Unit 18774 | -6/Deep Caves | Found Surveybot 24 Scanner 18777 | -6/Deep Caves | Found Surveybot 24 Chip 19379 | -6/Deep Caves | Discovered new exit (range 6) 19387 | -6/Deep Caves | Identified exit to Proximity Caves 19389 | -6/Deep Caves | Entered Proximity Caves 19528 | -5/Proximity Caves | Learned Factory garrison access intel 19540 | -5/Proximity Caves | Spotted B-75 Beast 19555 | -5/Proximity Caves | Destroyed B-75 Beast 19671 | -5/Proximity Caves | Discovered exit to Factory (range 23) 19803 | -5/Proximity Caves | Entered Factory 19803 | -5/Factory | Evolved 2 slots: Power x1, Utility x1 19805 | -5/Factory | Loaded intel: 4 garrison access locations 20063 | -5/Factory | Incoming assault squad redirected 20105 | -5/Factory | Build established: Hauler-Golem 20165 | -5/Factory | Discovered new exit (range 24) 20194 | -5/Factory | Identified exit to Upper Caves 20194 | -5/Factory | Identified exit to Extension 20202 | -5/Factory | Entered Extension 20431 | -5/Extension | Rescued a captive Derelict 20432 | -5/Extension | Rescued a captive Derelict 20499 | -5/Extension | Rescued A7 20560 | -5/Extension | Rescued a captive Derelict 20561 | -5/Extension | Rescued a captive Derelict 20691 | -5/Extension | Build established: Commander-Golem 20966 | -5/Extension | Discovered new exit (range 23) 20968 | -5/Extension | Spotted B-75 Beast 20974 | -5/Extension | Destroyed B-75 Beast 21002 | -5/Extension | Spotted B-75 Beast 21010 | -5/Extension | Destroyed B-75 Beast 21067 | -5/Extension | Rescued a captive Derelict 21068 | -5/Extension | Rescued a captive Derelict 21109 | -5/Extension | Energy Cycler disabled 21110 | -5/Extension | Rescued a captive Derelict 21110 | -5/Extension | Rescued a captive Derelict 21122 | -5/Extension | Rescued a captive Derelict 21402 | -5/Extension | First assault squad dispatched 21592 | -5/Extension | Discovered new exit (range 10) 21593 | -5/Extension | Discovered new exit (range 6) 21620 | -5/Extension | Entered Cetus 21620 | -5/Cetus | Accompanied by 1 ally 21625 | -5/Cetus | Acquired a Cetus Manufacturing Module code from A7 21643 | -5/Cetus | Spotted Cetus Guard 21643 | -5/Cetus | Spotted Cetus Guard 21645 | -5/Cetus | Destroyed Cetus Guard 21645 | -5/Cetus | Spotted Cetus Guard 21653 | -5/Cetus | Spotted Cetus Guard 21654 | -5/Cetus | Allies destroyed Cetus Guard 21654 | -5/Cetus | Destroyed Cetus Guard 21662 | -5/Cetus | Allies destroyed Cetus Guard 21689 | -5/Cetus | Build established: Hauler-Golem 21767 | -5/Cetus | Started Cetus Manufacturing Module 21788 | -5/Cetus | Escorted A7 to Cetus Mainframe 21792 | -5/Cetus | Manufactured an Enhanced Grunt 21817 | -5/Cetus | Manufactured an Enhanced Grunt 21842 | -5/Cetus | Manufactured an Enhanced Grunt 21867 | -5/Cetus | Manufactured an Enhanced Grunt 21892 | -5/Cetus | Manufactured an Enhanced Grunt 21964 | -5/Cetus | Discovered new exit (range 16) 22001 | -5/Cetus | Spotted Cetus Guard 22001 | -5/Cetus | Spotted Cetus Guard 22004 | -5/Cetus | Destroyed Cetus Guard 22004 | -5/Cetus | Spotted Cetus Guard 22005 | -5/Cetus | Spotted Cetus Guard 22017 | -5/Cetus | Allies destroyed Cetus Guard 22019 | -5/Cetus | Allies destroyed Cetus Guard 22020 | -5/Cetus | Discovered new exit (range 15) 22021 | -5/Cetus | Allies destroyed Cetus Guard 22033 | -5/Cetus | Found Prototype Device 22033 | -5/Cetus | Identified Exp. Thermal Shield 22045 | -5/Cetus | Met Revision 17 22132 | -5/Cetus | Entered Archives 22132 | -5/Archives | Accompanied by 5 allies 22137 | -5/Archives | Received a hacking code to weaken MAIN.C 22194 | -5/Archives | Discovered new exit (range 15) 22252 | -5/Archives | Discovered new exit (range 16) 22267 | -5/Archives | Discovered new exit (range 22) 22327 | -5/Archives | Build established: Hauler-Mutant 22537 | -5/Archives | Unable to access archive contents 22576 | -5/Archives | Entered Hub_04(d) 22576 | -5/Hub_04(d) | Accompanied by 4 allies 22577 | -5/Hub_04(d) | Discovered new exit (range 20) 22672 | -5/Hub_04(d) | Incoming assault squad redirected 22675 | -5/Hub_04(d) | Discovered new exit (range 14) 22771 | -5/Hub_04(d) | Build established: Hauler-Golem 22876 | -5/Hub_04(d) | First assault squad dispatched 22900 | -5/Hub_04(d) | Discovered new exit (range 22) 22902 | -5/Hub_04(d) | Incoming assault squad redirected 23007 | -5/Hub_04(d) | Network Hub disabled 23079 | -5/Hub_04(d) | Spotted Lightning 23087 | -5/Hub_04(d) | Spotted Lightning 23099 | -5/Hub_04(d) | Spotted Lightning 23102 | -5/Hub_04(d) | Destroyed Lightning 23115 | -5/Hub_04(d) | System corruption reached 10% 23139 | -5/Hub_04(d) | Destroyed Lightning 23154 | -5/Hub_04(d) | Destroyed Lightning 23180 | -5/Hub_04(d) | Found Prototype Device 23180 | -5/Hub_04(d) | Identified EM Dispersion Field 23196 | -5/Hub_04(d) | Found Prototype Device 23197 | -5/Hub_04(d) | Identified Exp. Phase Shifter 23233 | -5/Hub_04(d) | Incoming assault squad redirected 23256 | -5/Hub_04(d) | Lost 5 parts (1p3u1w) 23295 | -5/Hub_04(d) | Network Hub disabled 23403 | -5/Hub_04(d) | Spotted Lightning 23403 | -5/Hub_04(d) | Spotted Lightning 23435 | -5/Hub_04(d) | System corruption reached 30% 23448 | -5/Hub_04(d) | Spotted Lightning 23471 | -5/Hub_04(d) | Destroyed Lightning 23484 | -5/Hub_04(d) | Network Hub disabled 23487 | -5/Hub_04(d) | Destroyed Lightning 23504 | -5/Hub_04(d) | Incoming assault squad redirected 23543 | -5/Hub_04(d) | Destroyed Lightning 23550 | -5/Hub_04(d) | Found Prototype Energy Cannon 23553 | -5/Hub_04(d) | Found Exp. Phase Shifter 23559 | -5/Hub_04(d) | Crushed by falling debris 23564 | -5/Hub_04(d) | Found EM Dispersion Field 23569 | -5/Hub_04(d) | Entered Factory 23569 | -4/Factory | Evolved 2 slots: Utility x1, Weapon x1 24069 | -4/Factory | First assault squad dispatched 24161 | -4/Factory | Identified EMDS 24189 | -4/Factory | Incoming assault squad redirected 24218 | -4/Factory | Destroyed 7 combat bots 24296 | -4/Factory | Discovered new exit (range 22) 24337 | -4/Factory | Entered Research 24337 | -3/Research | Evolved 2 slots: Utility x2 24515 | -3/Research | Discovered new exit (range 24) 24631 | -3/Research | Build established: Scavenger-Mutant 24633 | -3/Research | First assault squad dispatched 24638 | -3/Research | Destroyed 9 combat bots 24647 | -3/Research | Entered another Research area 24647 | -2/Research | Evolved 2 slots: Utility x2 24953 | -2/Research | Spotted B-90 Cyclops 25147 | -2/Research | First assault squad dispatched 25634 | -2/Research | Identified exit to Access 25651 | -2/Research | System corruption reached 10% 25841 | -2/Research | Entered Access 25841 | -1/Access | Evolved 2 slots: Utility x2 26297 | -1/Access | Discovered new exit (range 7) 26400 | -1/Access | Entered Command 26798 | -1/Command | Lost 4 parts (4u) 27283 | -1/Command | Spotted Executioner 27284 | -1/Command | Spotted B-99 Colossus 27285 | -1/Command | Spotted Executioner 27286 | -1/Command | Spotted Executioner 27288 | -1/Command | Spotted Striker 27293 | -1/Command | Spotted B-99 Colossus 27295 | -1/Command | Discovered new exit (range 3) 27297 | -1/Command | Spotted Alpha 7 27310 | *** | Escaped! Last Messages --------------- 27305_ Stasis field depleted. 27306_ Penetrated by Slug. 27306_ Asb. Biocell Array destroyed. 27306_ Slug penetrates Reinforced Barrier. 27306_ Penetrated by Slug. 27306_ Slug penetrates Reinforced Barrier. 27306_ Penetrated by Slug. 27306_ Critical hit. 27306_ EMDS destroyed. 27306_ Penetrated by Slug. 27306_ Slug penetrates Wall. 27307_ Knocked back. 27307_ Penetrated by Slug. 27308_ Field strength at 25. 27309_ Slug penetrates Reinforced Barrier. 27309_ Penetrated by Slug. 27309_ Asb. Flux Generator destroyed. 27309_ Penetrated by Slug. 27309_ Slug penetrates Wall. 27310_ Penetrated by Slug. Map ----- +----------------------------------------------------+ | ????###+##?# ## ??# #?????????????????? | | ##### ### ##+######+########?????????????????? | | "" #????????????????????????? | | "T #????????????????????????? | | ##### #######+########????????????????????????? | | #???######????# ??????????????????????????????? | | #######???????# ????????????????????????????? | | ????# #??????????????????????????? | | ????# #??????????????????????????? | | #########?????# #??????????????????????????? | | ??????????#+############?????????????????????????? | | ########### [ #?????????????????????????? | | *=!|[!#! #?????????????????????????? | | =[%*! "=* #?????????????????????????? | | ## ![#####=! ##????????????????????????? | | ?# !=#???# "##???????????????????????? | | ?# #???#############" #???????????????????????? | | ?# #???????????????## ##??????????????????????? | | ?# #????????????????##"##?????????????????????? | | ?# #???????????########;#####?????????????????? | | ?# #???????????# BB #?????????????????? | | ## #???????????# BB #?????????????????? | | #???????????# #?????????????????? | | #??? " "" #?????????????????? | | +? "7 E"K #?????????????????? | | +? "@ E #?????????????????? | | +? ^ " "" #?????????????????? | | +? ????" ^ ;#????????????????? | | ######????? ?????"" "" ##????????????????? | | #??????????? ?????? ^ ;#????????????????? | | #???????????????? ##????????????????? | | ##+???????????????? #?????????????????? | | ??????????????????###"#####"####?????????????????? | | ????????????????????##????##?????????????????????? | | ?????????????????????????????????????????????????? | | ?????????????????????????????????????????????????? | | ?????????????????????????????????????????????????? | | ?????????????????????????????????????????????????? | | ?????????????????????????????????????????????????? | | ?????????????????????????????????????????????????? | | ?????????????????????????????????????????????????? | | ?????????????????????????????????????????????????? | | ?????????????????????????????????????????????????? | | ?????????????????????????????????????????????????? | | ?????????????????????????????????????????????????? | | ?????????????????????????????????????????????????? | | ?????????????????????????????????????????????????? | | ?????????????????????????????????????????????????? | | ?????????????????????????????????????????????????? | | | +----------------------------------------------------+ Best States ------------- Heat Dissipation 73 Energy Generation 53 Energy Capacity 3100 Matter Stores 317 Matter Capacity 550 Sight Range 22 Robot Scan Range 20 Terrain Scan Range 24 Terrain Scan Density 2010 Jamming Range 16 Power Amplification 20 Additional Mass Support 10 Armor Coverage 1750 Resistance: KI 20 Resistance: TH 15 Resistance: EX 15 Resistance: EM 75 Resistance: I 15 Resistance: S 15 Resistance: P 15 Weapon Shielding 100 Phase Shifting 20 Evasion (%) 60 Targeting Accuracy 16 Melee Accuracy 12 Target Analysis 8 Armor Integrity Analysis 90 Recoil Reduction 3 Energy Filtering 30 Particle Charging 25 Offensive Hacking 10 Item Schematics ----------------- Adv. Sensor Array | -8/Materials | Hacked Adv. Treads | -8/Materials | Hacked Combat Drone Bay | -7/Data Miner | Free Lgt. Regenerative Plating | -7/Data Miner | Free Exp. Flexi-carbon Leg | -7/Data Miner | Free Cmb. Gravmag System | -7/Data Miner | Free Exp. ECM Suite | -7/Data Miner | Free Exp. Targeting Computer | -7/Data Miner | Free Mni. Smartbomb Launcher | -7/Data Miner | Free Plasma Sword | -7/Data Miner | Free Battle Rifle | -6/Zion | Free Battle Cannon | -6/Zion | Free Ripper | -6/Zion | Free Tactical Coordination Suite | -6/Zion | Free Robot Schematics ------------------ S-27 Virus | -7/Data Miner | Free G-50 Soldier | -7/Data Miner | Free X-72 Disruptor | -7/Data Miner | Free H-66 Slayer | -7/Data Miner | Free P-70 Sage | -7/Data Miner | Free I-36 Angel | -7/Data Miner | Free I-47 Archangel | -7/Data Miner | Free Fabricated ------------ Mni. Smartbomb Launcher | x1 | -6/Factory Alien Tech Used ----------------- Core Expander Achievements -------------- None Challenges ------------ None Game ------ Seed SystemRagnarokThrower Manual? 0 Play Time 03:49:16 Cumulative 746.2 hours Start 2020.08.12 @ 20:40:28 End 2020.08.13 @ 01:44:53 Sessions 3 Manual Loads 0 Difficulty Rogue Special Mode None Game No. 295 Rogue 295 Adventurer 0 Explorer 0 Win Type 0 Total 36 Types 9/10/7/2/1/1/6 Lore% 95 Gallery% 93 Achievement% 80 Wizard Run 0 Options --------- ASCII 0 Keyboard 0 Movement Numpad Keybinds 0 Fullscreen 1 Font 24/Smallcaps Map View 76x50 Tactical HUD 1 Map Filters NONE Filters NONE Steam 1 RUN: fe0915dd-8a6e-44c0-9310-7d6e54573243